fUST/lending_fUST_20240807
["ID","MTS","AMOUNT","RATE_DAILY","PERIOD"]
[334326040,1722979748268,-251.36714843,0.00016364,2]
[334326041,1722979748291,-24900.0,0.00016365,2]
[334326042,1722979748311,-154.69833824,0.00017019,2]
[334326043,1722979748333,-963.3321027,0.00017038,2]
[334326044,1722979748354,-1493.26777767,0.0001721,2]
[334326045,1722979748376,-154.87271441,0.00017268,2]
[334326046,1722979748397,-4315.77719393,0.00017269,2]
[334326047,1722979748418,-3601.91477368,0.00017269,2]
[334326048,1722979748439,-654.73320762,0.00017269,2]
[334326049,1722979748460,-2013.54457312,0.00017269,2]
[334326050,1722979748483,-245.929112,0.0001731,2]
[334326051,1722979748506,-250.0,0.00017612,2]
[334326052,1722979748529,-3000.0,0.00017648,2]
[334326053,1722979748553,-250.0,0.0001766,2]
[334326054,1722979748577,-250.0,0.00017709,2]
[334326055,1722979748599,-250.0,0.00017757,2]
[334326056,1722979748621,-250.0,0.00017805,2]
[334326057,1722979748642,-250.0,0.00017854,2]
[334326058,1722979748664,-250.0,0.00017902,2]
[334326059,1722979748686,-250.0,0.0001795,2]
[334326060,1722979748709,-250.0,0.00017999,2]
[334326061,1722979748735,-420.0,0.00018,2]
[334326062,1722979748759,-250.0,0.00018047,2]
[334326063,1722979748783,-250.0,0.00018095,2]
[334326064,1722979748806,-250.0,0.00018143,2]
[334326065,1722979748830,-250.0,0.00018192,2]
[334326066,1722979748853,-250.0,0.0001824,2]
[334326067,1722979748876,-250.0,0.00018288,2]
[334326068,1722979748898,-168.2313946,0.00018337,2]
[334326069,1722979764115,-81.7686054,0.00018337,2]
[334326070,1722979764138,-250.0,0.00018385,2]
[334326071,1722979764161,-250.0,0.00018433,2]
[334326072,1722979764185,-250.0,0.00018482,2]
[334326073,1722979764207,-250.0,0.0001853,2]
[334326074,1722979764229,-810.1149959,0.00019451,2]
[334326075,1722979764250,-160.19468673,0.00019451,2]
[334326076,1722979764272,-154.77557542,0.00019451,2]
[334326077,1722979764298,-154.77557542,0.00019451,2]
[334326078,1722979764321,-532.14086008,0.00019451,2]
[334326079,1722979764343,-942.61257937,0.00019451,2]
[334326080,1722979764365,-987.82646631,0.00019451,2]
[334326081,1722979771146,215.92299366,0.00017269,2]
[334326082,1722979771170,245.0,0.00017269,2]
[334326083,1722979771192,251.65157077,0.00017269,2]
[334326084,1722979772213,-835.00058074,0.00017269,2]
[334326107,1722979832039,-300.0,0.00017268,2]
[334326108,1722979832049,-13700.429667,0.00017269,2]
[334326109,1722979832065,-4220.58213756,0.00017269,2]
[334326110,1722979832079,-4096.38945257,0.00017269,2]
[334326111,1722979832089,-1681.38980156,0.00017269,2]
[334326144,1722979837946,-2104.4742771,0.00017269,2]
[334326145,1722979837956,-3601.91477368,0.00017269,2]
[334326146,1722979837966,-2609.38107228,0.00017269,2]
[334326147,1722979837975,-420.0,0.00018995,2]
[334326148,1722979837985,-174.56235819,0.00019256,2]
[334326149,1722979837995,-2848.36326452,0.00019256,2]
[334326150,1722979838004,-209.86849569,0.00019256,2]
[334326151,1722979838013,-154.77557542,0.00019451,2]
[334326152,1722979838022,-154.77557542,0.00019451,2]
[334326153,1722979838033,-154.82572926,0.00019451,2]
[334326154,1722979838045,-156.73199194,0.00019451,2]
[334326155,1722979838054,-5236.41679691,0.00019451,2]
[334326156,1722979838063,-240.80307792,0.00019451,2]
[334326157,1722979838072,-222.44145668,0.00019451,2]
[334326159,1722979838082,-664.23911189,0.00019451,2]
[334326161,1722979838092,-342.05014288,0.00019451,2]
[334326162,1722979838102,-534.02405776,0.00019451,2]
[334326163,1722979838114,-568.56884199,0.00019451,2]
[334326164,1722979838124,-154.77557542,0.00019477,2]
[334326165,1722979838134,-251.2547148,0.00019477,2]
[334326166,1722979838143,-951.65187642,0.00019477,2]
[334326168,1722979838153,-201.4758121,0.00019477,2]
[334326170,1722979838162,-154.60575532,0.00019477,2]
[334326172,1722979838171,-628.96366144,0.00019477,2]
[334326174,1722979838181,-154.98939785,0.00019477,2]
[334326176,1722979838190,-154.60575532,0.00019547,2]
[334326178,1722979838200,-155.01550852,0.00019547,2]
[334326180,1722979838210,-154.79103211,0.00019547,2]
[334326181,1722979838219,-154.60575532,0.00019547,2]
[334326182,1722979838229,-154.60575532,0.00019547,2]
[334326183,1722979838239,-506.48190828,0.00019547,2]
[334326184,1722979838250,-253.18475952,0.000198,2]
[334326185,1722979838259,-1805.27691297,0.000199,2]
[334326186,1722979838454,-154.74467129,0.00019999,2]
[334326187,1722979838478,-287.82937614,0.00019999,2]
[334326188,1722979838488,-275.88215159,0.00019999,2]
[334326189,1722979838497,-522.26012374,0.00019999,2]
[334326190,1722979838507,-187.16186862,0.00019999,2]
[334326191,1722979838516,-188.40898191,0.0002,2]
[334326192,1722979838525,-6896.69376362,0.0002,2]
[334326193,1722979838535,-426.89711274,0.0002,2]
[334326194,1722979838545,-154.60575532,0.0002,2]
[334326195,1722979838555,-709.64530844,0.0002,2]
[334326196,1722979838564,-155.00974224,0.0002,2]
[334326197,1722979838573,-435.0,0.0002,2]
[334326198,1722979838582,-181.0137409,0.00020111,2]
[334326199,1722979838592,-409.52448284,0.0002018,2]
[334326200,1722979838601,-156.85069415,0.0002028,2]
[334326201,1722979838610,-1493.26777767,0.00020725,2]
[334326202,1722979838620,-587.0,0.00020894,2]
[334326203,1722979838630,-176.20179704,0.00020932,2]
[334326204,1722979838639,-603.79164827,0.00020932,2]
[334326205,1722979838648,-160.13374187,0.00020932,2]
[334326206,1722979838657,-27844.6964852,0.00020989,3]
[334326207,1722979838666,-154.76012181,0.00021011,2]
[334326208,1722979838676,-494.3368924,0.00021532,2]
[334326209,1722979838685,-1443.89362386,0.00021542,2]
[334326210,1722979838694,-302.27461649,0.00022,2]
[334326211,1722979838703,-302.27461649,0.0002222,2]
[334326212,1722979838712,-500.0,0.00022439,2]
[334326213,1722979838721,-180.74316101,0.00022439,2]
[334326214,1722979838730,-218.32073294,0.00022439,2]
[334326215,1722979838740,-500.0,0.00022439,2]
[334326216,1722979838749,-500.0,0.00022439,2]
[334326217,1722979838758,-500.0,0.00022439,2]
[334326218,1722979838767,-523.24898852,0.00022439,2]
[334326219,1722979838777,-302.27461649,0.0002244,2]
[334326220,1722979838786,-302.27461649,0.0002266,2]
[334326221,1722979838796,-302.27461649,0.0002288,2]
[334326222,1722979838805,-823.0,0.00022983,2]
[334326223,1722979838814,-494.59,0.0002299,3]
[334326224,1722979838823,-1245.605888,0.00023,2]
[334326225,1722979838832,-151.13730826,0.000231,4]
[334326226,1722979838842,-1493.26777767,0.00024241,2]
[334326227,1722979838851,-200.0,0.00024658,15]
[334326228,1722979838860,-409.52448281,0.00024697,2]
[334326229,1722979838872,-2059.47395771,0.00025,2]
[334326230,1722979838881,-1152.0,0.00025282,2]
[334326231,1722979838890,-245.929112,0.00025965,2]
[334326232,1722979838900,-402.40869281,0.00026579,2]
[334326233,1722979838909,-266.6760068,0.00027396,2]
[334326234,1722979838918,-1493.26777767,0.00027756,2]
[334326235,1722979838928,-1613.0,0.0002781,2]
[334326236,1722979838937,-161.417418,0.00027884,2]
[334326237,1722979838946,-409.52448281,0.00029213,2]
[334326238,1722979838955,-250.3410689,0.00029563,2]
[334326239,1722979838965,-151.0,0.0003,120]
[334326240,1722979838974,-1459.90712368,0.0003,2]
[334326241,1722979838984,-190.0,0.00030591,2]
[334326242,1722979838994,-1493.26777767,0.00031271,2]
[334326243,1722979839003,-178.701763,0.00031507,120]
[334326244,1722979839012,-634.66,0.00032602,14]
[334326245,1722979839021,-634.66,0.00032602,14]
[334326246,1722979839031,-358.42992919,0.0003312,30]
[334326247,1722979839046,-43809.06937086,0.0003312,7]
[334326248,1722979839055,-202.93670065,0.0003312,30]
[334326249,1722979839064,-151.0,0.00033342,120]
[334326250,1722979839073,-409.52448281,0.0003373,2]
[334326251,1722979839085,-159.297406,0.00034389,2]
[334326252,1722979839094,-576.46,0.00034466,3]
[334326253,1722979839104,-1493.26777767,0.00034786,2]
[334326254,1722979839115,-165.0,0.00036,2]
[334326255,1722979839124,-151.0,0.00036685,120]
[334326256,1722979839134,-153.0,0.00037397,2]
[334326257,1722979839143,-153.0,0.00037534,2]
[334326258,1722979839153,-162.9547944,0.00037534,2]
[334326259,1722979839164,-306.0635694,0.00037534,2]
[334326260,1722979839174,-27844.6964852,0.00038205,4]
[334326261,1722979839183,-16374.40080673,0.00038246,5]
[334326262,1722979839193,-409.52448281,0.00038246,2]
[334326263,1722979839202,-2000.0,0.00038256,2]
[334326264,1722979839211,-27844.6964852,0.0003828,4]
[334326265,1722979839221,-634.66,0.00038289,14]
[334326266,1722979839230,-634.66,0.00038289,14]
[334326267,1722979839239,-55689.3929703,0.0003829,4]
[334326268,1722979839249,-2000.0,0.00038299,45]
[334326269,1722979839258,-1000.0,0.00038299,45]
[334326270,1722979839267,-634.66,0.00038299,14]
[334326271,1722979839276,-634.66,0.00038299,14]
[334326272,1722979839286,-77156.40752519,0.000383,120]
[334326273,1722979839296,-10000.0,0.000383,30]
[334326274,1722979839306,-2184.70122417,0.000383,4]
[334326275,1722979839316,-186.49956096,0.000383,4]
[334326276,1722979839325,-216.30536308,0.000383,4]
[334326277,1722979839335,-12896.18570859,0.000383,2]
[334326278,1722979839344,-150.112233,0.000383,8]
[334326279,1722979839354,-150.112233,0.000383,6]
[334326280,1722979839364,-151.0,0.000383,7]
[334326281,1722979839373,-151.0,0.000383,7]
[334326282,1722979839382,-151.0,0.000383,7]
[334326283,1722979839392,-1493.26777767,0.00038302,2]
[334326284,1722979839402,-27844.6964852,0.00038335,4]
[334326285,1722979839411,-83534.0894555,0.00038336,4]
[334326286,1722979839421,-151.0,0.00038336,7]
[334326287,1722979839430,-151.0,0.00038336,7]
[334326288,1722979839440,-634.66,0.00038344,14]
[334326289,1722979839450,-634.66,0.00038345,14]
[334326290,1722979839460,-634.66,0.00038345,14]
[334326291,1722979839470,-634.66,0.00038345,14]
[334326292,1722979839479,-634.66,0.00038345,14]
[334326293,1722979839488,-634.66,0.00038345,14]
[334326294,1722979839497,-151.0,0.00038346,7]
[334326295,1722979839507,-151.0,0.00038346,7]
[334326296,1722979839517,-151.0,0.00038346,7]
[334326297,1722979839526,-151.0,0.00038346,7]
[334326298,1722979839536,-151.0,0.00038346,7]
[334326299,1722979839546,-151.0,0.00038346,7]
[334326300,1722979839555,-231.410227,0.00038346,7]
[334326301,1722979839565,-231.410227,0.00038346,7]
[334326302,1722979839575,-151.0,0.00038346,7]
[334326303,1722979839585,-151.0,0.00038346,7]
[334326304,1722979839595,-507.080516,0.00038346,7]
[334326305,1722979839604,-507.080516,0.00038346,7]
[334326306,1722979839613,-151.0,0.00038346,7]
[334326307,1722979839623,-285.244622,0.00038346,7]
[334326308,1722979839632,-285.244622,0.00038346,7]
[334326309,1722979839646,-752.658221,0.00038346,7]
[334326310,1722979839655,-752.658221,0.00038346,7]
[334326311,1722979839664,-1000.0,0.00038355,25]
[334326313,1722979839674,-634.66,0.00038355,14]
[334326315,1722979839683,-634.66,0.00038355,14]
[334326316,1722979839693,-634.66,0.00038355,14]
[334326317,1722979839702,-634.66,0.00038355,14]
[334326318,1722979839712,-634.66,0.00038355,14]
[334326319,1722979839721,-634.66,0.00038355,14]
[334326320,1722979839730,-634.66,0.00038355,14]
[334326321,1722979839739,-634.66,0.00038355,14]
[334326322,1722979839749,-634.66,0.00038355,14]
[334326323,1722979839758,-634.66,0.00038355,14]
[334326324,1722979839767,-634.66,0.00038355,14]
[334326325,1722979839777,-634.71,0.00038355,14]
[334326326,1722979839787,-29247.45269311,0.00038356,21]
[334326327,1722979839797,-500.0,0.00038356,14]
[334326328,1722979839811,-500.0,0.00038356,50]
[334326329,1722979839821,-151.0,0.00038356,7]
[334326330,1722979839830,-151.0,0.00038356,7]
[334326331,1722979839839,-151.0,0.00038356,7]
[334326332,1722979839848,-151.0,0.00038356,7]
[334326333,1722979839858,-500.0,0.00038356,14]
[334326334,1722979839867,-151.0,0.00038356,7]
[334326335,1722979839877,-500.0,0.00038356,14]
[334326336,1722979839887,-500.0,0.00038356,14]
[334326337,1722979839897,-500.0,0.00038356,14]
[334326338,1722979839906,-500.0,0.00038356,14]
[334326339,1722979839915,-559.81704241,0.00038356,14]
[334326340,1722979839926,-500.0,0.00038356,14]
[334326341,1722979839937,-631.24154233,0.00038356,14]
[334326342,1722979839946,-500.0,0.00038356,14]
[334326343,1722979839956,-500.0,0.00038356,14]
[334326344,1722979839971,-500.0,0.00038356,14]
[334326346,1722979839980,-500.0,0.00038356,14]
[334326347,1722979839990,-500.0,0.00038356,14]
[334326348,1722979840000,-500.0,0.00038356,14]
[334326349,1722979840010,-500.0,0.00038356,14]
[334326350,1722979840020,-500.0,0.00038356,14]
[334326351,1722979840030,-316.56229011,0.00038356,14]
[334326352,1722979840042,-500.0,0.00038356,14]
[334326353,1722979840052,-500.0,0.00038356,14]
[334326354,1722979840062,-500.0,0.00038356,14]
[334326355,1722979840072,-500.0,0.00038356,14]
[334326356,1722979840082,-539.81777918,0.00038356,14]
[334326357,1722979840093,-690.0,0.00038356,14]
[334326358,1722979840103,-500.0,0.00038356,14]
[334326359,1722979840115,-500.0,0.00038356,14]
[334326360,1722979840124,-221.87172236,0.00038356,14]
[334326361,1722979840134,-500.0,0.00038356,14]
[334326362,1722979840144,-151.0,0.00038356,7]
[334326363,1722979840154,-244.699492,0.00038356,14]
[334326364,1722979840333,-1488.120508,0.00038356,14]
[334326365,1722979840343,-593.49,0.00038356,14]
[334326366,1722979840354,-231.651917,0.00038356,7]
[334326367,1722979840364,-242.43503853,0.00038356,14]
[334326368,1722979840388,-202.587876,0.000383,7]
[334326369,1722979840398,-257.56496147,0.00038356,14]
[334326370,1722979840408,-521.96,0.00038356,14]
[334326371,1722979840417,-500.0,0.00038356,14]
[334326372,1722979840427,-611.6,0.00038356,14]
[334326373,1722979840436,-476.81290132,0.00038356,14]
[334326374,1722979840447,-500.0,0.00038356,14]
[334326375,1722979840457,-500.0,0.00038356,14]
[334326376,1722979840466,-815.34,0.00038356,14]
[334326377,1722979840476,-151.0,0.00038356,7]
[334326378,1722979840487,-151.0,0.00038356,7]
[334326379,1722979840496,-500.0,0.00038356,14]
[334326380,1722979840506,-860.25,0.00038356,14]
[334326381,1722979840516,-522.41156185,0.00038356,14]
[334326382,1722979840526,-717.78,0.00038356,14]
[334326383,1722979840536,-200.94,0.00038356,7]
[334326384,1722979840552,-500.0,0.00038356,2]
[334326385,1722979840561,-500.0,0.00038356,14]
[334326386,1722979840571,-507.56802688,0.00038356,14]
[334326387,1722979840581,-198.74779566,0.00038356,14]
[334326388,1722979840591,-1027.05,0.00038356,14]
[334326389,1722979840600,-500.0,0.00038356,14]
[334326390,1722979840610,-500.0,0.00038356,14]
[334326391,1722979840620,-150.0,0.00038356,14]
[334326392,1722979840630,-500.0,0.00038356,14]
[334326393,1722979840639,-178.93866216,0.00038356,14]
[334326394,1722979840649,-500.0,0.00038356,14]
[334326395,1722979840658,-500.0,0.00038356,14]
[334326396,1722979840668,-500.0,0.00038356,14]
[334326397,1722979840678,-500.0,0.00038356,14]
[334326398,1722979840688,-500.0,0.00038356,14]
[334326399,1722979840698,-500.0,0.00038356,14]
[334326400,1722979840708,-500.0,0.00038356,14]
[334326401,1722979840717,-500.0,0.00038356,14]
[334326402,1722979840727,-500.0,0.00038356,14]
[334326403,1722979840737,-500.0,0.00038356,14]
[334326404,1722979840747,-500.0,0.00038356,14]
[334326405,1722979840757,-660.36,0.00038356,14]
[334326406,1722979840766,-500.0,0.00038356,14]
[334326407,1722979840776,-500.0,0.00038356,14]
[334326408,1722979840786,-500.0,0.00038356,14]
[334326409,1722979840796,-500.0,0.00038356,14]
[334326410,1722979840806,-500.0,0.00038356,14]
[334326411,1722979840816,-500.0,0.00038356,14]
[334326412,1722979840825,-305.14877733,0.00038356,14]
[334326413,1722979840834,-601.04,0.00038356,14]
[334326414,1722979840844,-500.0,0.00038356,14]
[334326415,1722979840853,-500.0,0.00038356,14]
[334326416,1722979840863,-500.0,0.00038356,14]
[334326417,1722979840873,-505.48855078,0.00038356,14]
[334326418,1722979840883,-500.0,0.00038356,14]
[334326419,1722979840893,-806.88,0.00038356,14]
[334326420,1722979840903,-500.0,0.00038356,14]
[334326421,1722979840912,-500.0,0.00038356,14]
[334326422,1722979840922,-500.0,0.00038356,14]
[334326423,1722979840931,-500.0,0.00038356,14]
[334326424,1722979840940,-500.0,0.00038356,14]
[334326425,1722979840949,-500.0,0.00038356,14]
[334326426,1722979840959,-500.0,0.00038356,14]
[334326427,1722979840968,-500.0,0.00038356,14]
[334326428,1722979840978,-500.0,0.00038356,14]
[334326429,1722979840987,-500.0,0.00038356,14]
[334326430,1722979840996,-500.0,0.00038356,14]
[334326431,1722979841005,-500.0,0.00038356,14]
[334326432,1722979841015,-369.77029459,0.00038356,14]
[334326433,1722979841024,-500.0,0.00038356,14]
[334326434,1722979841034,-585.06,0.00038356,14]
[334326435,1722979841049,-500.0,0.00038356,14]
[334326436,1722979841058,-534.42,0.00038356,14]
[334326437,1722979841067,-500.0,0.00038356,14]
[334326438,1722979841077,-186.11955881,0.00038356,14]
[334326439,1722979841087,-559.78943866,0.00038356,14]
[334326440,1722979841096,-500.0,0.00038356,14]
[334326441,1722979841106,-537.51,0.00038356,14]
[334326442,1722979841116,-500.0,0.00038356,14]
[334326443,1722979841126,-500.0,0.00038356,14]
[334326444,1722979841135,-500.0,0.00038356,14]
[334326445,1722979841146,-500.0,0.00038356,14]
[334326446,1722979841155,-500.0,0.00038356,14]
[334326447,1722979841165,-700.81,0.00038356,14]
[334326448,1722979841174,-500.0,0.00038356,14]
[334326449,1722979841184,-573.12338806,0.00038356,14]
[334326450,1722979841194,-500.0,0.00038356,14]
[334326451,1722979841204,-503.71371679,0.00038356,14]
[334326452,1722979841214,-666.29,0.00038356,14]
[334326453,1722979841223,-506.00429424,0.00038356,14]
[334326454,1722979841233,-500.0,0.00038356,14]
[334326455,1722979841242,-500.0,0.00038356,14]
[334326456,1722979841252,-500.0,0.00038356,14]
[334326457,1722979841262,-500.0,0.00038356,14]
[334326458,1722979841271,-500.0,0.00038356,14]
[334326459,1722979841280,-500.0,0.00038356,14]
[334326460,1722979841289,-500.0,0.00038356,14]
[334326461,1722979841300,-500.0,0.00038356,14]
[334326462,1722979841309,-482.82430531,0.00038356,14]
[334326463,1722979841319,-2647.54,0.00038356,14]
[334326464,1722979841329,-500.0,0.00038356,14]
[334326465,1722979841339,-500.0,0.00038356,14]
[334326466,1722979841348,-500.0,0.00038356,14]
[334326467,1722979841358,-963.28,0.00038356,14]
[334326468,1722979841367,-500.0,0.00038356,14]
[334326469,1722979841376,-500.0,0.00038356,14]
[334326470,1722979841386,-632.30716329,0.00038356,14]
[334326471,1722979841395,-712.97,0.00038356,14]
[334326472,1722979841405,-277.88116646,0.00038356,14]
[334326473,1722979841415,-500.0,0.00038356,14]
[334326474,1722979841424,-500.0,0.00038356,14]
[334326475,1722979841434,-500.0,0.00038356,14]
[334326476,1722979841443,-500.0,0.00038356,14]
[334326477,1722979841453,-500.0,0.00038356,14]
[334326478,1722979841463,-500.0,0.00038356,14]
[334326479,1722979841473,-1105.55,0.00038356,14]
[334326480,1722979841482,-552.4,0.00038356,14]
[334326481,1722979841492,-509.91,0.00038356,14]
[334326482,1722979841503,-500.0,0.00038356,14]
[334326483,1722979841512,-500.0,0.00038356,14]
[334326484,1722979841523,-500.0,0.00038356,14]
[334326485,1722979841533,-500.0,0.00038356,14]
[334326486,1722979841543,-500.0,0.00038356,14]
[334326487,1722979841555,-2206.33,0.00038356,14]
[334326488,1722979841564,-500.0,0.00038356,14]
[334326489,1722979841574,-516.53843016,0.00038356,14]
[334326490,1722979841583,-1154.95,0.00038356,14]
[334326491,1722979841593,-2111.52,0.00038356,14]
[334326492,1722979841602,-500.0,0.00038356,14]
[334326493,1722979841612,-718.72,0.00038356,14]
[334326494,1722979841621,-623.03,0.00038356,14]
[334326495,1722979841633,-586.73,0.00038356,14]
[334326496,1722979841642,-500.0,0.00038356,14]
[334326497,1722979841651,-500.0,0.00038356,14]
[334326498,1722979841662,-500.0,0.00038356,14]
[334326499,1722979841684,-214.11538912,0.00038356,14]
[334326500,1722979841694,-223.12722583,0.00038356,14]
[334326501,1722979841704,-500.0,0.00038356,14]
[334326502,1722979841714,-510.32,0.00038356,14]
[334326503,1722979841724,-1855.48,0.00038356,14]
[334326504,1722979841733,-500.0,0.00038356,14]
[334326505,1722979841744,-500.0,0.00038356,14]
[334326506,1722979841754,-2510.57,0.00038356,14]
[334326507,1722979841765,-500.0,0.00038356,14]
[334326508,1722979841775,-500.0,0.00038356,14]
[334326509,1722979841785,-500.0,0.00038356,14]
[334326510,1722979841797,-811.58,0.00038356,14]
[334326511,1722979841808,-692.27,0.00038356,14]
[334326512,1722979841818,-500.0,0.00038356,14]
[334326513,1722979841828,-500.0,0.00038356,14]
[334326514,1722979841838,-500.0,0.00038356,14]
[334326515,1722979841848,-188.0102848,0.00038356,14]
[334326516,1722979841858,-500.0,0.00038356,14]
[334326517,1722979841869,-500.0,0.00038356,14]
[334326518,1722979841878,-500.0,0.00038356,14]
[334326519,1722979841888,-500.0,0.00038356,14]
[334326520,1722979841899,-500.0,0.00038356,14]
[334326521,1722979841908,-500.0,0.00038356,14]
[334326522,1722979841918,-500.0,0.00038356,14]
[334326523,1722979841928,-500.0,0.00038356,14]
[334326524,1722979841938,-500.0,0.00038356,14]
[334326525,1722979841950,-500.0,0.00038356,14]
[334326526,1722979841961,-500.0,0.00038356,14]
[334326527,1722979841971,-500.0,0.00038356,14]
[334326528,1722979841980,-500.0,0.00038356,14]
[334326529,1722979841990,-500.0,0.00038356,14]
[334326530,1722979842000,-500.0,0.00038356,14]
[334326531,1722979842009,-500.0,0.00038356,14]
[334326532,1722979842019,-500.0,0.00038356,14]
[334326533,1722979842030,-500.0,0.00038356,14]
[334326534,1722979842043,-591.12,0.00038356,14]
[334326535,1722979842054,-500.0,0.00038356,14]
[334326536,1722979842064,-718.51,0.00038356,14]
[334326537,1722979842074,-151.0,0.00038356,7]
[334326538,1722979842085,-500.0,0.00038356,14]
[334326539,1722979842095,-500.0,0.00038356,14]
[334326540,1722979842105,-614.62,0.00038356,14]
[334326541,1722979842115,-500.0,0.00038356,14]
[334326542,1722979842124,-500.0,0.00038356,14]
[334326543,1722979842134,-500.0,0.00038356,14]
[334326544,1722979842143,-500.0,0.00038356,14]
[334326545,1722979842153,-500.0,0.00038356,14]
[334326546,1722979842162,-500.0,0.00038356,14]
[334326547,1722979842172,-500.0,0.00038356,14]
[334326548,1722979842182,-500.0,0.00038356,14]
[334326549,1722979842192,-500.0,0.00038356,14]
[334326550,1722979842202,-535.58081897,0.00038356,14]
[334326551,1722979842211,-566.09,0.00038356,14]
[334326552,1722979842221,-165.16306182,0.00038356,14]
[334326553,1722979842231,-500.0,0.00038356,14]
[334326554,1722979842240,-849.36,0.00038356,14]
[334326555,1722979842250,-500.0,0.00038356,14]
[334326556,1722979842264,-500.0,0.00038356,14]
[334326557,1722979842273,-500.0,0.00038356,14]
[334326558,1722979842283,-811.89,0.00038356,14]
[334326559,1722979842293,-692.17,0.00038356,14]
[334326560,1722979842305,-1482.57,0.00038356,14]
[334326561,1722979842315,-500.0,0.00038356,14]
[334326562,1722979842324,-500.0,0.00038356,14]
[334326563,1722979842334,-500.0,0.00038356,14]
[334326564,1722979842343,-500.0,0.00038356,14]
[334326565,1722979842353,-500.0,0.00038356,14]
[334326566,1722979842363,-1867.28,0.00038356,14]
[334326567,1722979842372,-516.23088268,0.00038356,14]
[334326572,1722979842619,-500.0,0.00038356,14]
[334326576,1722979842655,-500.0,0.00038356,14]
[334326579,1722979842665,-500.0,0.00038356,14]
[334326582,1722979842675,-500.0,0.00038356,14]
[334326584,1722979842684,-712.69,0.00038356,14]
[334326586,1722979842694,-500.0,0.00038356,14]
[334326588,1722979842704,-604.34,0.00038356,14]
[334326590,1722979842714,-548.15,0.00038356,14]
[334326592,1722979842724,-500.0,0.00038356,14]
[334326593,1722979842733,-2369.91,0.00038356,14]
[334326594,1722979842743,-622.54,0.00038356,14]
[334326595,1722979842754,-500.0,0.00038356,14]
[334326596,1722979842764,-500.0,0.00038356,14]
[334326597,1722979842774,-663.98,0.00038356,14]
[334326598,1722979842783,-1381.54,0.00038356,14]
[334326599,1722979842793,-531.4,0.00038356,14]
[334326600,1722979842807,-500.0,0.00038356,14]
[334326601,1722979842816,-500.0,0.00038356,14]
[334326602,1722979842826,-618.2,0.00038356,14]
[334326603,1722979842837,-500.0,0.00038356,14]
[334326604,1722979842847,-1044.51,0.00038356,14]
[334326605,1722979842860,-500.0,0.00038356,14]
[334326606,1722979842872,-197.43192012,0.00038356,14]
[334326607,1722979842881,-500.0,0.00038356,14]
[334326608,1722979842891,-299.45358226,0.00038356,14]
[334326609,1722979842900,-500.0,0.00038356,14]
[334326610,1722979842909,-3081.82,0.00038356,14]
[334326611,1722979842918,-741.59,0.00038356,14]
[334326612,1722979842927,-1997.75,0.00038356,14]
[334326613,1722979842938,-500.0,0.00038356,14]
[334326614,1722979842947,-500.0,0.00038356,14]
[334326615,1722979842957,-500.0,0.00038356,14]
[334326616,1722979842966,-500.0,0.00038356,14]
[334326617,1722979842976,-500.0,0.00038356,14]
[334326618,1722979842985,-500.0,0.00038356,14]
[334326619,1722979842995,-2361.38,0.00038356,14]
[334326620,1722979843004,-740.36,0.00038356,14]
[334326621,1722979843014,-500.0,0.00038356,14]